Workbook

Sheet Sheet1
B1: REASON | H1: TYPE OF CHANGE
E2: PREVIOUS | F2: NEW
A3: REGS | E3: BURDEN | F3: BURDEN | G3: DIFFERENCE
B4: 2011 Submission Changes to 0580-0013 | F4: 0.00 | G4: =F4-E4 -> 0.00
A5: FGIS-100 | B5: Decrease in respondents is offset by responses per respondent increase | E5: 7.055 | F5: 6.640 | G5: =F5-E5 -> -0.415 | H5: Adj
A6: FGIS-904 | B6: Increase in onsite labs increased responses & better accounting system using online equipment eliminated recordkeepers | E6: 409.944 | F6: 463.290 | G6: =F6-E6 -> 53.346 | H6: Adj
A7: FGIS-907 | B7: Increase in responses. New calculation method more accurately reflects the responses per respondent | E7: 1,076.600 | F7: 4,337.700 | G7: =F7-E7 -> 3,261.100 | H7: Adj
A8: FGIS-909 | B8: Increase in record keepers | E8: 156.390 | F8: 273.680 | G8: =F8-E8 -> 117.290 | H8: Adj
A9: FGIS-909-1 | B9: Form no longer needed - combined w/909 | E9: 2.000 | F9: 0.000 | G9: -2.000 | H9: Adj
A10: FGIS-909-2 | B10: Form no longer needed - combined w/909 | E10: 10.720 | F10: 0.000 | G10: -10.720 | H10: Adj
A11: Offical Cert - Submitted Sample Inspection / Now FGIS-914 | B11: Decrease in respondents but increase in time per record keeper | E11: 991.800 | F11: 1,066.240 | G11: =F11-E11 -> 74.440 | H11: Adj
A12: Offical Cert. Warehouseman Sample Lot Ins./ Now FGIS-913 | B12: Increase in record keepers; decrease in per response time | E12: 3.960 | F12: 10.940 | G12: =F12-E12 -> 6.980 | H12: Adj
A13: Official Stowage Examination Cert / Now FGIS-915 | B13: Increase in hours per record keeper | E13: 40.264 | F13: 3,090.580 | G13: =F13-E13 -> 3,050.316 | H13: Adj
A14: FGIS-921 | B14: Increase in respondents, offset by decrease in per response time; decrease in record keepers | E14: 3,831.533 | F14: 3,110.500 | G14: -721.033 | H14: Adj
A15: FGIS-921-2 | B15: Increase in respondents offset by reduction in number of responses per respondent. | E15: 180.200 | F15: 123.920 | G15: -56.280 | H15: Adj
A16: FGIS-923 | B16: Increase in onsite labs increased responses & better accounting system using online equipment eliminated recordkeepers | E16: 220.430 | F16: 382.720 | G16: 162.290 | H16: Adj
A17: FGIS-924 | B17: Decrease in responses & better accounting system using online equipment eliminated recordkeepers | E17: 339.040 | F17: 244.020 | G17: =F17-E17 -> -95.020 | H17: Adj
A18: FGIS-925 | B18: Decrease in per response time & accounting system using online equipment eliminated record | E18: 8.008 | F18: 2.000 | G18: -6.008 | H18: Adj
A19: FGIS-927 | B19: Increase in onsite labs increased responses & better accounting system using online equipment eliminated recordkeepers | E19: 55.947 | F19: 131.630 | G19: 75.683 | H19: Adj
A20: FGIS-928 | B20: Increase in onsite labs increased responses & better accounting system using online equipment eliminated recordkeepers | E20: 269.110 | F20: 282.330 | G20: 13.220 | H20: Adj
A21: FGIS-931 | B21: Per response time is .001389. | E21: 9.975 | F21: 7.180 | G21: -2.795 | H21: Adj
A22: FGIS-930 | B22: Decrease in respondents | E22: 72.000 | F22: 36.000 | G22: -36.000 | H22: Adj
A23: FGIS-932 | B23: Discontinued form. | E23: 46.750 | F23: 0.000 | G23: -46.750 | H23: Adj
A24: FGIS-936 | B24: Better accounting system using online equipment eliminated recordkeepers | E24: 2,002.428 | F24: 2,000.460 | G24: -1.968 | H24: Adj
A25: FGIS-938 | B25: Decrease in respondents | E25: 151.894 | F25: 132.082 | G25: -19.812 | H25: Adj
A26: FGIS-941 | B26: Increase in respondents and recordkeeping | E26: 0.166 | F26: 1.092 | G26: 0.926 | H26: Adj
A27: FGIS-942 | B27: Number of official agencies decreased. | E27: 33.033 | F27: 20.020 | G27: -13.013 | H27: Adj
A28: FGIS-944 | B28: Better accounting system using online equipment eliminated recordkeepers | E28: 19.976 | F28: 19.920 | G28: -0.056 | H28: Adj
A29: FGIS-950 | B29: Increase in respondents and recordkeeping | E29: 0.532 | F29: 1.640 | G29: 1.108 | H29: Adj
A30: FGIS-952 | B30: Decrease in respondents and recordkeepers | E30: 396.090 | F30: 198.030 | G30: -198.060 | H30: Adj
A31: FGIS-956 | B31: Increase in record keepers and hours per recordkeeper | E31: 17.000 | F31: 62.540 | G31: 45.540 | H31: Adj
A32: FGIS-960 | B32: Decrease in record keepers | E32: 41.140 | F32: 26.152 | G32: -14.988 | H32: Adj
A33: FGIS-961 | B33: Discontinued form. | E33: 10.480 | F33: 0.000 | G33: -10.480 | H33: Adj
A34: FGIS-963 | B34: Decrease in record keepers | E34: 199.800 | F34: 145.860 | G34: -53.940 | H34: Adj
A35: FGIS-964 | B35: Increase in record keepers | E35: 666.080 | F35: 1,599.190 | G35: 933.110 | H35: Adj
A36: FGIS-965 | B36: Designated States decrease reducing responses; record keeper incr. by one | E36: 588.600 | F36: 372.700 | G36: -215.900 | H36: Adj
A37: FGIS-965-2 | B37: Increase in respondents and record keepers | E37: 82.886 | F37: 96.740 | G37: 13.854 | H37: Adj
A38: FGIS-968 | B38: Increase in respondent but responses per respondent decreased; increase in record keepers | E38: 5,335.565 | F38: 4,743.980 | G38: -591.585 | H38: Adj
A39: FGIS-993 | B39: Decrease in record keepers | E39: 323.000 | F39: 102.000 | G39: -221.000 | H39: Adj
A40: FGIS-994 | B40: Decrease in record keepers | E40: 1,580.914 | F40: 416.030 | G40: -1,164.884 | H40: Adj
A41: FGIS-1001 | B41: Decrease in respondents and recordkeepers | E41: 25.585 | F41: 17.431 | G41: -8.154 | H41: Adj
A42: Application for Scale Testing | B42: Decrease in respondents & record keepers eliminated | E42: 404.500 | F42: 169.000 | G42: -235.500 | H42: Adj
A43: Approval to operate outside assigned area | B43: Decrease in respondents | E43: 12.500 | F43: 1.500 | G43: -11.000 | H43: Adj
A44: Fee Records | B44: Decrease in respondents and recordkeepers | E44: 28.028 | F44: 25.030 | G44: -2.998 | H44: Adj
A45: File Samples | B45: Increase in record keepers w/decrease in hours per record keeper | E45: 27,609.064 | F45: 26,936.000 | G45: -673.064 | H45: Adj
A46: Filing Complaints | B46: Increase in respondents | E46: 36.000 | F46: 52.000 | G46: 16.000 | H46: Adj
A47: Grain Merchandising Records | B47: Decrease in record keepers | E47: 60.000 | F47: 40.000 | G47: -20.000 | H47: Adj
A48: Notification of 15,000 MT Exemption | B48: Decrease in respondents and recordkeepers | E48: 6.048 | F48: 2.180 | G48: -3.868 | H48: Adj
A49: Notification of dismissal/with drawal/refusal | B49: Decrease in respondents and recordkeepers | E49: 0.450 | F49: 0.430 | G49: -0.020 | H49: Adj
A50: Offical Certificate / Now FGIS-905 | B50: Decrease in record keepers and time per record keeper | E50: 6,840.000 | F50: 745.920 | G50: -6,094.080 | H50: Adj
A51: Payment of Bills | B51: Increase in respondents | E51: 4,548.000 | F51: 5,100.000 | G51: 552.000 | H51: Adj
A52: Reporting Violations | B52: Increase in respondents | E52: 1.169 | F52: 6.012 | G52: 4.843 | H52: Adj
A53: Request for Designation Cancellation | B53: Increase in respondents | E53: 0.000 | F53: 2.000 | G53: 2.000 | H53: Adj
A54: Work Records (AMA) | B54: Decrease in respondents, responses per respondent; increase in per response time; decrease in record keepers and hour per record keeper | E54: 3,631.860 | F54: 3,097.600 | G54: -534.260 | H54: Adj
A55: Work Records (USGSA) | B55: Increase in responses per respondent and hours per response | E55: 98,240.400 | F55: 94,672.140 | G55: -3,568.260 | H55: Adj
A56: TOTAL | E56: =SUM(E5:E55) -> 160,624.914 | F56: =SUM(F5:F55) -> 154,375.049 | G56: =SUM(G5:G55) -> -6,249.865
A58: Note: The difference total must agree with the difference total(s) shown on the ROCIS ICR data page. This figure must also be the difference between the previous submission and the current submission burden hours.
